{"text_format":"1","workbook":"xlsx","n_sheets":2,"sheets":["Tabelle1","Tabelle2"],"not_rendered":{"charts":0,"images":0,"macros":1,"external_links":0,"defined_names":1,"comments":0,"pivot_tables":0},"unopened":[],"bounds":{"document_bytes":16777216,"sheet_cells":100000,"rows_first":2000,"rows_last":500,"rows_between":2000,"halvings":0,"cell_chars":16384,"cell_head_chars":4096},"cells_cut":0,"cells_raw":0,"read":"whole","date_system":"1900"}

{"sheet":"Tabelle1","index":0,"n_rows":23,"n_cols":2,"rows_kept":23,"cut":false,"hidden":false,"merged":[]}
["Anwärter","Los hat…"]
["Teilnehmer 1",{"$f":"IF(MOD((ROW()+2),3),\"verloren\",\"gewonnen\")","v":"verloren"}]
["Teilnehmer 2","verloren"]
["Teilnehmer 3","gewonnen"]
["Teilnehmer 4","verloren"]
["Teilnehmer 5","verloren"]
["Teilnehmer 6","gewonnen"]
["Teilnehmer 7","verloren"]
["Teilnehmer 8","verloren"]
["Teilnehmer 9","gewonnen"]
["Teilnehmer 10","verloren"]
["Teilnehmer 11","verloren"]
["Teilnehmer 12","gewonnen"]
["Teilnehmer 13","verloren"]
["Teilnehmer 14","verloren"]
["Teilnehmer 15","gewonnen"]
["Teilnehmer 16","verloren"]
["Teilnehmer 17","verloren"]
["Teilnehmer 18","gewonnen"]
["Teilnehmer 19","verloren"]
["Teilnehmer 20","verloren"]
["Teilnehmer 21","gewonnen"]
["Teilnehmer 22",{"$f":"IF(MOD((ROW()+2),3),\"verloren\",\"gewonnen\")","v":"verloren"}]

{"sheet":"Tabelle2","index":1,"n_rows":10,"n_cols":2,"rows_kept":10,"cut":false,"hidden":false,"merged":[]}
["Gewinn-Nr.","Gewinn"]
["Gewinn 1","Bildschirm"]
["Gewinn 2","Tastatur/Maus"]
["Gewinn 3","Excel-Traing"]
["Gewinn 4","Festplatte"]
["Gewinn 5","Arbeitsspeicher"]
["Gewinn 6","Sound-System"]
["Gewinn 7","Office-Paket"]
["Gewinn 8","sonstwas1"]
["Gewinn 9","sonstwas2"]